[Event "Titled Tuesday Blitz April 4 Early 2023"]
[White "Hrabinska, Myroslava"]
[Black "Dahlgren, James Allen"]
[WhiteFideId "14109190"]
[BlackFideId "22256873"]
[WhiteElo "2039"]
[BlackElo "2188"]
[Result "0-1"]
[Round "05"]
[TimeControl "180+2"]
[Date "2023.04.04"]
[WhiteClock "0:00:01"]
[BlackClock "0:00:06"]

1. e4 {[%clk 0:03:00]}  e6 {[%clk 0:03:00]} 2. Nf3 {[%clk 0:02:57]}  d5 {[%clk 0:02:59]} 3. e5 {[%clk 0:02:57]}  c5 {[%clk 0:02:59]} 4. b4 {[%clk 0:02:57]}  cxb4 {[%clk 0:02:58]} 5. a3 {[%clk 0:02:57]}  bxa3 {[%clk 0:02:55]} 6. d4 {[%clk 0:02:56]}  f6 {[%clk 0:02:50]} 7. Bd3 {[%clk 0:02:49]}  Nc6 {[%clk 0:02:35]} 8. c3 {[%clk 0:02:46]}  fxe5 {[%clk 0:02:17]} 9. dxe5 {[%clk 0:02:47]}  Be7 {[%clk 0:01:53]} 10. Nxa3 {[%clk 0:02:39]}  Bd7 {[%clk 0:01:43]} 11. O-O {[%clk 0:02:26]}  a6 {[%clk 0:01:41]} 12. Nc2 {[%clk 0:02:23]}  Qc7 {[%clk 0:01:32]} 13. Qe2 {[%clk 0:02:18]}  Nh6 {[%clk 0:01:13]} 14. Bxh6 {[%clk 0:02:16]}  gxh6 {[%clk 0:01:14]} 15. Ncd4 {[%clk 0:02:11]}  O-O {[%clk 0:00:48]} 16. Nxc6 {[%clk 0:01:42]}  Bxc6 {[%clk 0:00:41]} 17. Nd4 {[%clk 0:01:42]}  Bd7 {[%clk 0:00:37]} 18. Qe3 {[%clk 0:01:24]}  Rf7 {[%clk 0:00:28]} 19. f4 {[%clk 0:01:13]}  Raf8 {[%clk 0:00:24]} 20. Qh3 {[%clk 0:00:48]}  Rxf4 {[%clk 0:00:22]} 21. Rxf4 {[%clk 0:00:48]}  Rxf4 {[%clk 0:00:23]} 22. Qxh6 {[%clk 0:00:48]}  Rf7 {[%clk 0:00:17]} 23. Qe3 {[%clk 0:00:33]}  Bc5 {[%clk 0:00:13]} 24. Rd1 {[%clk 0:00:22]}  Be8 {[%clk 0:00:10]} 25. Kh1 {[%clk 0:00:18]}  Qe7 {[%clk 0:00:10]} 26. Qg3+ {[%clk 0:00:16]}  Rg7 {[%clk 0:00:10]} 27. Qh3 {[%clk 0:00:15]}  Bd7 {[%clk 0:00:09]} 28. Rf1 {[%clk 0:00:13]}  Qg5 {[%clk 0:00:09]} 29. Nf3 {[%clk 0:00:09]}  Qe3 {[%clk 0:00:08]} 30. Rd1 {[%clk 0:00:07]}  Qf2 {[%clk 0:00:07]} 31. Bb1 {[%clk 0:00:05]}  Ba4 {[%clk 0:00:06]} 32. Rc1 {[%clk 0:00:04]}  Bd7 {[%clk 0:00:06]} 33. Rd1 {[%clk 0:00:01]}  Be3 {[%clk 0:00:06]} 0-1


[Site "https://www.chess.com"]

[Event "Titled Tuesday Blitz April 4 Early 2023"]
[White "Estremera Panos, Sergio"]
[Black "Kiseleva, Arina"]
[WhiteFideId "2200864"]
[BlackFideId "4164989"]
[WhiteElo "2253"]
[BlackElo "1708"]
[Result "0-1"]
[Round "05"]
[TimeControl "180+2"]
[Date "2023.04.04"]
[WhiteClock "0:00:15"]
[BlackClock "0:00:04"]

1. d4 {[%clk 0:03:00]}  Nf6 {[%clk 0:02:59]} 2. c4 {[%clk 0:03:01]}  e6 {[%clk 0:02:59]} 3. Nc3 {[%clk 0:03:01]}  Bb4 {[%clk 0:02:59]} 4. e3 {[%clk 0:03:01]}  O-O {[%clk 0:02:59]} 5. Bd3 {[%clk 0:03:00]}  Re8 {[%clk 0:02:58]} 6. Nf3 {[%clk 0:02:55]}  d5 {[%clk 0:02:57]} 7. cxd5 {[%clk 0:02:52]}  exd5 {[%clk 0:02:56]} 8. Bd2 {[%clk 0:02:52]}  Nc6 {[%clk 0:02:50]} 9. O-O {[%clk 0:02:49]}  Bg4 {[%clk 0:02:44]} 10. h3 {[%clk 0:02:48]}  Bh5 {[%clk 0:02:41]} 11. g4 {[%clk 0:02:40]}  Bg6 {[%clk 0:02:39]} 12. Qc2 {[%clk 0:02:40]}  Ne4 {[%clk 0:02:04]} 13. Nh2 {[%clk 0:02:31]}  Qh4 {[%clk 0:01:52]} 14. Kg2 {[%clk 0:02:11]}  Bd6 {[%clk 0:01:14]} 15. Bxe4 {[%clk 0:01:57]}  Bxe4+ {[%clk 0:00:59]} 16. Nxe4 {[%clk 0:01:55]}  dxe4 {[%clk 0:01:00]} 17. f4 {[%clk 0:01:38]}  exf3+ {[%clk 0:00:50]} 18. Rxf3 {[%clk 0:01:21]}  Nxd4 {[%clk 0:00:46]} 19. Qd1 {[%clk 0:00:57]}  Nxf3 {[%clk 0:00:44]} 20. Qxf3 {[%clk 0:00:58]}  Bxh2 {[%clk 0:00:36]} 21. Kxh2 {[%clk 0:00:52]}  Rad8 {[%clk 0:00:30]} 22. Bc3 {[%clk 0:00:47]}  Rd3 {[%clk 0:00:27]} 23. Rf1 {[%clk 0:00:45]}  f6 {[%clk 0:00:21]} 24. Bd4 {[%clk 0:00:37]}  b6 {[%clk 0:00:16]} 25. Qd5+ {[%clk 0:00:33]}  Kh8 {[%clk 0:00:15]} 26. Rg1 {[%clk 0:00:18]}  Rd2+ {[%clk 0:00:14]} 27. Rg2 {[%clk 0:00:18]}  Rxg2+ {[%clk 0:00:14]} 28. Kxg2 {[%clk 0:00:19]}  c5 {[%clk 0:00:14]} 29. Qf7 {[%clk 0:00:17]}  Rg8 {[%clk 0:00:13]} 30. Bc3 {[%clk 0:00:17]}  Qg5 {[%clk 0:00:12]} 31. Kf3 {[%clk 0:00:16]}  Qg6 {[%clk 0:00:12]} 32. Qxa7 {[%clk 0:00:16]}  h5 {[%clk 0:00:11]} 33. Qxb6 {[%clk 0:00:15]}  hxg4+ {[%clk 0:00:11]} 34. hxg4 {[%clk 0:00:16]}  c4 {[%clk 0:00:07]} 35. Qc5 {[%clk 0:00:15]}  Qf7 {[%clk 0:00:05]} 36. Qh5+ {[%clk 0:00:14]}  Qxh5 {[%clk 0:00:04]} 37. gxh5 {[%clk 0:00:15]}  Ra8 {[%clk 0:00:04]} 38. a3 {[%clk 0:00:15]}  Kh7 {[%clk 0:00:04]} 39. Ke4 {[%clk 0:00:14]}  Kh6 {[%clk 0:00:05]} 40. Kd4 {[%clk 0:00:14]}  Rc8 {[%clk 0:00:04]} 41. Bb4 {[%clk 0:00:15]}  Kxh5 {[%clk 0:00:04]} 42. Bc5 {[%clk 0:00:16]}  g5 {[%clk 0:00:04]} 43. Kxc4 {[%clk 0:00:17]}  g4 {[%clk 0:00:04]} 44. Kd4 {[%clk 0:00:15]}  g3 {[%clk 0:00:04]} 45. Bd6 {[%clk 0:00:15]}  g2 {[%clk 0:00:03]} 46. Bh2 {[%clk 0:00:15]}  Kh4 {[%clk 0:00:03]} 47. b4 {[%clk 0:00:14]}  Kh3 {[%clk 0:00:03]} 48. Bg1 {[%clk 0:00:14]}  Rc1 {[%clk 0:00:03]} 49. Bf2 {[%clk 0:00:14]}  Rf1 {[%clk 0:00:03]} 50. b5 {[%clk 0:00:13]}  Rxf2 {[%clk 0:00:03]} 51. b6 {[%clk 0:00:14]}  Rb2 {[%clk 0:00:03]} 52. a4 {[%clk 0:00:14]}  g1=Q {[%clk 0:00:03]} 53. Kc5 {[%clk 0:00:15]}  Qc1+ {[%clk 0:00:03]} 54. Kd6 {[%clk 0:00:15]}  Rxb6+ {[%clk 0:00:04]} 0-1


[Site "https://www.chess.com"]

[Event "Titled Tuesday Blitz April 4 Early 2023"]
[White "Vujcic, Milena"]
[Black "Burdalev, Kirill"]
[WhiteFideId "954748"]
[BlackFideId "14121913"]
[WhiteElo "1882"]
[BlackElo "2236"]
[Result "1/2-1/2"]
[Round "05"]
[TimeControl "180+2"]
[Date "2023.04.04"]
[WhiteClock "0:02:32"]
[BlackClock "0:02:08"]

1. e4 {[%clk 0:03:00]}  c5 {[%clk 0:02:59]} 2. Nf3 {[%clk 0:03:00]}  d6 {[%clk 0:02:58]} 3. d4 {[%clk 0:03:01]}  cxd4 {[%clk 0:02:58]} 4. Nxd4 {[%clk 0:03:02]}  Nf6 {[%clk 0:02:58]} 5. Nc3 {[%clk 0:03:02]}  g6 {[%clk 0:02:58]} 6. Be3 {[%clk 0:03:00]}  Bg7 {[%clk 0:02:57]} 7. f3 {[%clk 0:03:00]}  Nc6 {[%clk 0:02:55]} 8. Qd2 {[%clk 0:02:59]}  O-O {[%clk 0:02:54]} 9. O-O-O {[%clk 0:02:58]}  d5 {[%clk 0:02:53]} 10. Nxc6 {[%clk 0:02:47]}  bxc6 {[%clk 0:02:51]} 11. exd5 {[%clk 0:02:44]}  Nxd5 {[%clk 0:02:49]} 12. Nxd5 {[%clk 0:02:44]}  cxd5 {[%clk 0:02:49]} 13. Qxd5 {[%clk 0:02:44]}  Qc7 {[%clk 0:02:48]} 14. Qc5 {[%clk 0:02:43]}  Qb7 {[%clk 0:02:25]} 15. Qb5 {[%clk 0:02:37]}  Qc7 {[%clk 0:02:19]} 16. Qc5 {[%clk 0:02:35]}  Qb7 {[%clk 0:02:11]} 17. Qb5 {[%clk 0:02:33]}  Qc7 {[%clk 0:02:08]} 18. Qc5 {[%clk 0:02:32]} 1/2-1/2


[Site "https://www.chess.com"]

[Event "Titled Tuesday Blitz April 4 Early 2023"]
[White "Floresvillar Gonzalez, Luis Migu"]
[Black "Tuleyeva-Aketayeva, Dana"]
[WhiteFideId "5100542"]
[BlackFideId "13701932"]
[WhiteElo "2040"]
[BlackElo "2030"]
[Result "1/2-1/2"]
[Round "05"]
[TimeControl "180+2"]
[Date "2023.04.04"]
[WhiteClock "0:00:10"]
[BlackClock "0:00:06"]

1. e4 {[%clk 0:03:00]}  c5 {[%clk 0:02:59]} 2. d4 {[%clk 0:02:58]}  cxd4 {[%clk 0:02:58]} 3. c3 {[%clk 0:02:58]}  d3 {[%clk 0:02:59]} 4. Bxd3 {[%clk 0:02:57]}  Nc6 {[%clk 0:02:59]} 5. f4 {[%clk 0:02:54]}  d6 {[%clk 0:02:59]} 6. Nf3 {[%clk 0:02:53]}  g6 {[%clk 0:03:00]} 7. h3 {[%clk 0:02:52]}  Bg7 {[%clk 0:03:00]} 8. Be3 {[%clk 0:02:51]}  Nf6 {[%clk 0:03:00]} 9. Nbd2 {[%clk 0:02:50]}  O-O {[%clk 0:03:01]} 10. Qe2 {[%clk 0:02:48]}  b6 {[%clk 0:03:00]} 11. g4 {[%clk 0:02:47]}  Bb7 {[%clk 0:02:59]} 12. g5 {[%clk 0:02:44]}  Nd7 {[%clk 0:02:59]} 13. h4 {[%clk 0:02:43]}  Nc5 {[%clk 0:02:58]} 14. Bc2 {[%clk 0:02:41]}  d5 {[%clk 0:02:53]} 15. O-O-O {[%clk 0:02:25]}  e6 {[%clk 0:01:40]} 16. f5 {[%clk 0:02:06]}  Ba6 {[%clk 0:00:45]} 17. Qf2 {[%clk 0:01:52]}  exf5 {[%clk 0:00:41]} 18. Bxc5 {[%clk 0:01:41]}  bxc5 {[%clk 0:00:38]} 19. exf5 {[%clk 0:01:40]}  gxf5 {[%clk 0:00:35]} 20. Qxc5 {[%clk 0:01:31]}  Qb6 {[%clk 0:00:28]} 21. Qxb6 {[%clk 0:01:30]}  axb6 {[%clk 0:00:27]} 22. Bxf5 {[%clk 0:01:30]}  Be2 {[%clk 0:00:20]} 23. Rde1 {[%clk 0:01:27]}  Bxf3 {[%clk 0:00:20]} 24. Nxf3 {[%clk 0:01:26]}  Rxa2 {[%clk 0:00:20]} 25. h5 {[%clk 0:01:13]}  Ra1+ {[%clk 0:00:17]} 26. Bb1 {[%clk 0:01:12]}  d4 {[%clk 0:00:15]} 27. h6 {[%clk 0:01:03]}  Bh8 {[%clk 0:00:15]} 28. cxd4 {[%clk 0:00:56]}  Nxd4 {[%clk 0:00:14]} 29. Nxd4 {[%clk 0:00:56]}  Bxd4 {[%clk 0:00:14]} 30. Kc2 {[%clk 0:00:53]}  Rc8+ {[%clk 0:00:13]} 31. Kb3 {[%clk 0:00:53]}  Ra5 {[%clk 0:00:13]} 32. Bd3 {[%clk 0:00:40]}  Rxg5 {[%clk 0:00:12]} 33. Re4 {[%clk 0:00:34]}  Bf6 {[%clk 0:00:11]} 34. Rf4 {[%clk 0:00:33]}  Be5 {[%clk 0:00:10]} 35. Rf5 {[%clk 0:00:31]}  Rxf5 {[%clk 0:00:10]} 36. Bxf5 {[%clk 0:00:31]}  Rd8 {[%clk 0:00:08]} 37. Rg1+ {[%clk 0:00:31]}  Kh8 {[%clk 0:00:08]} 38. Re1 {[%clk 0:00:29]}  Bf6 {[%clk 0:00:08]} 39. Rf1 {[%clk 0:00:28]}  Bg5 {[%clk 0:00:08]} 40. Bc2 {[%clk 0:00:26]}  Bxh6 {[%clk 0:00:07]} 41. Rxf7 {[%clk 0:00:25]}  Bg7 {[%clk 0:00:07]} 42. Bf5 {[%clk 0:00:20]}  Rf8 {[%clk 0:00:06]} 43. Rxf8+ {[%clk 0:00:19]}  Bxf8 {[%clk 0:00:06]} 44. Kc4 {[%clk 0:00:19]}  Kg7 {[%clk 0:00:07]} 45. Kb5 {[%clk 0:00:19]}  Bc5 {[%clk 0:00:07]} 46. b4 {[%clk 0:00:18]}  Be3 {[%clk 0:00:07]} 47. Kc4 {[%clk 0:00:15]}  h5 {[%clk 0:00:07]} 48. Kd3 {[%clk 0:00:14]}  Bg1 {[%clk 0:00:06]} 49. Ke2 {[%clk 0:00:12]}  Kf6 {[%clk 0:00:06]} 50. Bd7 {[%clk 0:00:11]}  Kg5 {[%clk 0:00:06]} 51. b5 {[%clk 0:00:10]}  Bc5 {[%clk 0:00:06]} 52. Kf1 {[%clk 0:00:11]}  Kf4 {[%clk 0:00:05]} 53. Kg2 {[%clk 0:00:11]}  h4 {[%clk 0:00:05]} 54. Kh3 {[%clk 0:00:11]}  Be7 {[%clk 0:00:05]} 55. Bc6 {[%clk 0:00:11]}  Ke3 {[%clk 0:00:04]} 56. Bd7 {[%clk 0:00:11]}  Kf2 {[%clk 0:00:03]} 57. Bc6 {[%clk 0:00:11]}  Bf6 {[%clk 0:00:04]} 58. Bd7 {[%clk 0:00:12]}  Ke3 {[%clk 0:00:05]} 59. Bc6 {[%clk 0:00:12]}  Kd4 {[%clk 0:00:06]} 60. Bd7 {[%clk 0:00:13]}  Kc5 {[%clk 0:00:06]} 61. Bc6 {[%clk 0:00:13]}  Kd6 {[%clk 0:00:07]} 62. Be8 {[%clk 0:00:13]}  Ke7 {[%clk 0:00:08]} 63. Bc6 {[%clk 0:00:13]}  Kd8 {[%clk 0:00:08]} 64. Bd5 {[%clk 0:00:13]}  Kd7 {[%clk 0:00:08]} 65. Bc6+ {[%clk 0:00:13]}  Ke7 {[%clk 0:00:08]} 66. Bd5 {[%clk 0:00:13]}  Kd6 {[%clk 0:00:09]} 67. Bc6 {[%clk 0:00:13]}  Ke6 {[%clk 0:00:09]} 68. Be8 {[%clk 0:00:12]}  Be7 {[%clk 0:00:09]} 69. Bc6 {[%clk 0:00:13]}  Kd6 {[%clk 0:00:09]} 70. Be4 {[%clk 0:00:12]}  Bd8 {[%clk 0:00:06]} 71. Bc6 {[%clk 0:00:12]}  Bf6 {[%clk 0:00:06]} 72. Be8 {[%clk 0:00:10]}  Ke7 {[%clk 0:00:05]} 73. Bc6 {[%clk 0:00:10]}  Kd6 {[%clk 0:00:06]} 1/2-1/2


[Site "https://www.chess.com"]

[Event "Titled Tuesday Blitz April 4 Early 2023"]
[White "Torres Hernandez, Leslie Carolin"]
[Black "Slayyy_200"]
[WhiteFideId "8400504"]
[WhiteElo "1920"]
[BlackElo "2089"]
[Result "1-0"]
[Round "05"]
[TimeControl "180+2"]
[Date "2023.04.04"]
[WhiteClock "0:01:47"]
[BlackClock "0:00:07"]

1. e4 {[%clk 0:03:00]}  c5 {[%clk 0:01:30]} 2. Nf3 {[%clk 0:02:58]}  Nc6 {[%clk 0:01:23]} 3. Bb5 {[%clk 0:02:58]}  d6 {[%clk 0:01:21]} 4. O-O {[%clk 0:02:56]}  Bd7 {[%clk 0:01:21]} 5. c3 {[%clk 0:02:56]}  a6 {[%clk 0:01:20]} 6. Be2 {[%clk 0:02:57]}  g6 {[%clk 0:01:19]} 7. d4 {[%clk 0:02:57]}  cxd4 {[%clk 0:01:19]} 8. cxd4 {[%clk 0:02:58]}  Bg7 {[%clk 0:01:19]} 9. Nc3 {[%clk 0:02:58]}  Nf6 {[%clk 0:01:18]} 10. h3 {[%clk 0:02:57]}  O-O {[%clk 0:01:18]} 11. Bf4 {[%clk 0:02:52]}  Re8 {[%clk 0:01:16]} 12. e5 {[%clk 0:02:52]}  Nh5 {[%clk 0:01:15]} 13. Bh2 {[%clk 0:02:52]}  dxe5 {[%clk 0:01:08]} 14. dxe5 {[%clk 0:02:52]}  f5 {[%clk 0:01:00]} 15. Ng5 {[%clk 0:02:38]}  e6 {[%clk 0:00:57]} 16. Bxh5 {[%clk 0:02:36]}  Qxg5 {[%clk 0:00:55]} 17. Bxg6 {[%clk 0:02:33]}  Qxg6 {[%clk 0:00:52]} 18. Qxd7 {[%clk 0:02:33]}  Bxe5 {[%clk 0:00:47]} 19. Qxb7 {[%clk 0:02:32]}  Bxh2+ {[%clk 0:00:32]} 20. Kxh2 {[%clk 0:02:32]}  Ne5 {[%clk 0:00:33]} 21. Qc7 {[%clk 0:02:24]}  Nf7 {[%clk 0:00:22]} 22. Rfe1 {[%clk 0:02:22]}  Kh8 {[%clk 0:00:21]} 23. Rad1 {[%clk 0:02:18]}  Rg8 {[%clk 0:00:21]} 24. g3 {[%clk 0:02:16]}  Rac8 {[%clk 0:00:19]} 25. Qf4 {[%clk 0:02:14]}  e5 {[%clk 0:00:17]} 26. Qh4 {[%clk 0:02:13]}  f4 {[%clk 0:00:17]} 27. Rd7 {[%clk 0:02:05]}  fxg3+ {[%clk 0:00:16]} 28. fxg3 {[%clk 0:02:05]}  Rc4 {[%clk 0:00:16]} 29. Re4 {[%clk 0:01:51]}  Rxe4 {[%clk 0:00:10]} 30. Nxe4 {[%clk 0:01:50]}  Qc6 {[%clk 0:00:09]} 31. Qf6+ {[%clk 0:01:48]}  Qxf6 {[%clk 0:00:08]} 32. Nxf6 {[%clk 0:01:49]}  Rg7 {[%clk 0:00:08]} 33. Re7 {[%clk 0:01:48]}  Ng5 {[%clk 0:00:07]} 34. Re8+ {[%clk 0:01:47]} 1-0


[Site "https://www.chess.com"]

[Event "Titled Tuesday Blitz April 4 Early 2023"]
[White "Sanchez, Robert"]
[Black "Vemparala, Nikash"]
[WhiteFideId "2034360"]
[BlackFideId "30960967"]
[WhiteElo "2038"]
[BlackElo "2023"]
[Result "0-1"]
[Round "05"]
[TimeControl "180+2"]
[Date "2023.04.04"]
[WhiteClock "0:00:20"]
[BlackClock "0:00:23"]

1. e4 {[%clk 0:03:00]}  e5 {[%clk 0:02:59]} 2. Nf3 {[%clk 0:02:40]}  Nc6 {[%clk 0:02:59]} 3. Bb5 {[%clk 0:02:40]}  Bc5 {[%clk 0:02:57]} 4. c3 {[%clk 0:02:39]}  Nf6 {[%clk 0:02:54]} 5. d4 {[%clk 0:02:39]}  Bb6 {[%clk 0:02:38]} 6. O-O {[%clk 0:02:33]}  O-O {[%clk 0:02:33]} 7. Bg5 {[%clk 0:02:33]}  d6 {[%clk 0:01:53]} 8. Bxc6 {[%clk 0:02:30]}  bxc6 {[%clk 0:01:52]} 9. dxe5 {[%clk 0:02:31]}  dxe5 {[%clk 0:01:52]} 10. Qxd8 {[%clk 0:02:31]}  Rxd8 {[%clk 0:01:51]} 11. Nxe5 {[%clk 0:02:31]}  Re8 {[%clk 0:01:47]} 12. Bxf6 {[%clk 0:02:30]}  gxf6 {[%clk 0:01:47]} 13. Nxc6 {[%clk 0:02:28]}  Rxe4 {[%clk 0:01:47]} 14. Nd2 {[%clk 0:02:29]}  Re2 {[%clk 0:01:45]} 15. Nc4 {[%clk 0:02:09]}  Ba6 {[%clk 0:01:30]} 16. b3 {[%clk 0:01:58]}  Bxc4 {[%clk 0:01:27]} 17. bxc4 {[%clk 0:01:58]}  Rc2 {[%clk 0:01:27]} 18. a4 {[%clk 0:01:43]}  Rxc3 {[%clk 0:01:20]} 19. Rfc1 {[%clk 0:01:40]}  Rxc1+ {[%clk 0:01:11]} 20. Rxc1 {[%clk 0:01:39]}  Re8 {[%clk 0:01:12]} 21. Kf1 {[%clk 0:01:38]}  Bc5 {[%clk 0:01:07]} 22. Re1 {[%clk 0:01:34]}  Rxe1+ {[%clk 0:01:03]} 23. Kxe1 {[%clk 0:01:34]}  Kf8 {[%clk 0:01:04]} 24. Ke2 {[%clk 0:01:29]}  Ke8 {[%clk 0:00:56]} 25. Na5 {[%clk 0:01:27]}  Kd7 {[%clk 0:00:52]} 26. Nb3 {[%clk 0:01:27]}  Bb4 {[%clk 0:00:50]} 27. f4 {[%clk 0:01:20]}  a5 {[%clk 0:00:45]} 28. f5 {[%clk 0:01:20]}  Kd6 {[%clk 0:00:45]} 29. Kf3 {[%clk 0:01:13]}  Ke5 {[%clk 0:00:43]} 30. g4 {[%clk 0:01:13]}  c5 {[%clk 0:00:39]} 31. Ke3 {[%clk 0:01:00]}  h6 {[%clk 0:00:38]} 32. h3 {[%clk 0:00:58]}  Bc3 {[%clk 0:00:32]} 33. Kf3 {[%clk 0:00:46]}  Bb4 {[%clk 0:00:32]} 34. h4 {[%clk 0:00:43]}  Bc3 {[%clk 0:00:27]} 35. Nxc5 {[%clk 0:00:31]}  Kd4 {[%clk 0:00:26]} 36. Ne4 {[%clk 0:00:27]}  Kxc4 {[%clk 0:00:23]} 37. Nxc3 {[%clk 0:00:27]}  Kxc3 {[%clk 0:00:24]} 38. Ke4 {[%clk 0:00:21]}  Kb4 {[%clk 0:00:23]} 39. Kd4 {[%clk 0:00:21]}  Kxa4 {[%clk 0:00:23]} 40. Kc3 {[%clk 0:00:20]}  Kb5 {[%clk 0:00:23]} 0-1


[Site "https://www.chess.com"]

[Event "Titled Tuesday Blitz April 4 Early 2023"]
[White "Alekseenko, Kirill"]
[Black "Mamedov, Rauf"]
[WhiteFideId "4135539"]
[BlackFideId "13401653"]
[WhiteElo "2683"]
[BlackElo "2635"]
[Result "1-0"]
[Round "06"]
[TimeControl "180+2"]
[Date "2023.04.04"]
[WhiteClock "0:00:18"]
[BlackClock "0:00:04"]

1. d4 {[%clk 0:03:00]}  Nf6 {[%clk 0:02:59]} 2. Nc3 {[%clk 0:03:01]}  d5 {[%clk 0:02:58]} 3. Bf4 {[%clk 0:03:01]}  g6 {[%clk 0:02:55]} 4. e3 {[%clk 0:02:59]}  Bg7 {[%clk 0:02:55]} 5. h4 {[%clk 0:02:55]}  h5 {[%clk 0:02:54]} 6. Nf3 {[%clk 0:02:56]}  Bg4 {[%clk 0:02:53]} 7. Be2 {[%clk 0:02:56]}  Bxf3 {[%clk 0:02:45]} 8. Bxf3 {[%clk 0:02:56]}  c6 {[%clk 0:02:44]} 9. Qe2 {[%clk 0:02:54]}  Nbd7 {[%clk 0:02:42]} 10. O-O-O {[%clk 0:02:51]}  b5 {[%clk 0:02:27]} 11. Qd3 {[%clk 0:02:37]}  Qa5 {[%clk 0:02:22]} 12. Kb1 {[%clk 0:02:37]}  O-O {[%clk 0:02:14]} 13. Rdg1 {[%clk 0:02:37]}  b4 {[%clk 0:02:12]} 14. Ne2 {[%clk 0:02:36]}  c5 {[%clk 0:02:13]} 15. g4 {[%clk 0:02:28]}  c4 {[%clk 0:02:07]} 16. Qd1 {[%clk 0:02:26]}  hxg4 {[%clk 0:02:05]} 17. Bxg4 {[%clk 0:02:12]}  Nxg4 {[%clk 0:02:05]} 18. Rxg4 {[%clk 0:02:13]}  Nf6 {[%clk 0:02:05]} 19. Rg2 {[%clk 0:02:09]}  b3 {[%clk 0:02:03]} 20. cxb3 {[%clk 0:01:46]}  cxb3 {[%clk 0:02:03]} 21. Qxb3 {[%clk 0:00:58]}  Ne4 {[%clk 0:02:01]} 22. Ka1 {[%clk 0:00:46]}  Rfc8 {[%clk 0:00:39]} 23. f3 {[%clk 0:00:45]}  Nd2 {[%clk 0:00:37]} 24. Qd3 {[%clk 0:00:46]}  Nc4 {[%clk 0:00:19]} 25. h5 {[%clk 0:00:40]}  e5 {[%clk 0:00:18]} 26. hxg6 {[%clk 0:00:37]}  Qb6 {[%clk 0:00:06]} 27. gxf7+ {[%clk 0:00:36]}  Kf8 {[%clk 0:00:06]} 28. Nc3 {[%clk 0:00:28]}  exf4 {[%clk 0:00:04]} 29. Qh7 {[%clk 0:00:24]}  Qf6 {[%clk 0:00:04]} 30. Qg8+ {[%clk 0:00:22]}  Ke7 {[%clk 0:00:04]} 31. Nxd5+ {[%clk 0:00:23]}  Kd6 {[%clk 0:00:03]} 32. Nxf6 {[%clk 0:00:21]}  Bxf6 {[%clk 0:00:04]} 33. Qg6 {[%clk 0:00:18]} 1-0


[Site "https://www.chess.com"]

[Event "Titled Tuesday Blitz April 4 Early 2023"]
[White "Andreikin, Dmitry"]
[Black "Durarbayli, Vasif"]
[WhiteFideId "4158814"]
[BlackFideId "13402935"]
[WhiteElo "2736"]
[BlackElo "2551"]
[Result "1/2-1/2"]
[Round "06"]
[TimeControl "180+2"]
[Date "2023.04.04"]
[WhiteClock "0:00:07"]
[BlackClock "0:00:06"]

1. Nf3 {[%clk 0:03:00]}  c5 {[%clk 0:02:59]} 2. g3 {[%clk 0:02:57]}  Nc6 {[%clk 0:02:58]} 3. Bg2 {[%clk 0:02:57]}  g6 {[%clk 0:02:59]} 4. c4 {[%clk 0:02:57]}  Bg7 {[%clk 0:02:59]} 5. Nc3 {[%clk 0:02:57]}  e6 {[%clk 0:02:59]} 6. h4 {[%clk 0:02:48]}  Nf6 {[%clk 0:02:51]} 7. d3 {[%clk 0:02:45]}  d6 {[%clk 0:02:42]} 8. Rb1 {[%clk 0:02:37]}  Rb8 {[%clk 0:02:42]} 9. a3 {[%clk 0:02:36]}  b6 {[%clk 0:02:42]} 10. b4 {[%clk 0:02:31]}  Bb7 {[%clk 0:02:42]} 11. Bf4 {[%clk 0:02:26]}  Nd4 {[%clk 0:02:25]} 12. bxc5 {[%clk 0:02:09]}  Nxf3+ {[%clk 0:01:58]} 13. Bxf3 {[%clk 0:02:07]}  Bxf3 {[%clk 0:01:57]} 14. exf3 {[%clk 0:02:07]}  Nh5 {[%clk 0:01:27]} 15. Qa4+ {[%clk 0:00:31]}  Qd7 {[%clk 0:01:26]} 16. Qxd7+ {[%clk 0:00:32]}  Kxd7 {[%clk 0:01:27]} 17. c6+ {[%clk 0:00:33]}  Kxc6 {[%clk 0:01:24]} 18. Bd2 {[%clk 0:00:34]}  Nf6 {[%clk 0:01:07]} 19. Ke2 {[%clk 0:00:34]}  Nd7 {[%clk 0:01:07]} 20. Rhc1 {[%clk 0:00:33]}  a6 {[%clk 0:01:03]} 21. Be3 {[%clk 0:00:31]}  Kc7 {[%clk 0:00:46]} 22. Ne4 {[%clk 0:00:29]}  h6 {[%clk 0:00:42]} 23. d4 {[%clk 0:00:26]}  f5 {[%clk 0:00:42]} 24. Nd2 {[%clk 0:00:25]}  Rhc8 {[%clk 0:00:36]} 25. f4 {[%clk 0:00:21]}  Kd8 {[%clk 0:00:35]} 26. Nf3 {[%clk 0:00:19]}  Rc7 {[%clk 0:00:29]} 27. d5 {[%clk 0:00:18]}  exd5 {[%clk 0:00:23]} 28. cxd5 {[%clk 0:00:19]}  Rxc1 {[%clk 0:00:20]} 29. Rxc1 {[%clk 0:00:20]}  Nc5 {[%clk 0:00:20]} 30. h5 {[%clk 0:00:18]}  gxh5 {[%clk 0:00:15]} 31. Nh4 {[%clk 0:00:18]}  Bb2 {[%clk 0:00:15]} 32. Rh1 {[%clk 0:00:16]}  Bxa3 {[%clk 0:00:13]} 33. Nxf5 {[%clk 0:00:16]}  Nd7 {[%clk 0:00:11]} 34. Rxh5 {[%clk 0:00:16]}  Nf6 {[%clk 0:00:10]} 35. Rxh6 {[%clk 0:00:14]}  Nxd5 {[%clk 0:00:11]} 36. Nxd6 {[%clk 0:00:10]}  b5 {[%clk 0:00:08]} 37. Ne4 {[%clk 0:00:09]}  Kc7 {[%clk 0:00:08]} 38. Rxa6 {[%clk 0:00:07]}  b4 {[%clk 0:00:07]} 39. Bc5 {[%clk 0:00:06]}  Rb5 {[%clk 0:00:02]} 40. Kd3 {[%clk 0:00:05]}  Kb7 {[%clk 0:00:03]} 41. Ra7+ {[%clk 0:00:05]}  Kc6 {[%clk 0:00:04]} 42. Kc4 {[%clk 0:00:04]}  Rxc5+ {[%clk 0:00:03]} 43. Nxc5 {[%clk 0:00:04]}  Nb6+ {[%clk 0:00:04]} 44. Kb3 {[%clk 0:00:04]}  Kxc5 {[%clk 0:00:05]} 45. f5 {[%clk 0:00:04]}  Nd5 {[%clk 0:00:05]} 46. g4 {[%clk 0:00:03]}  Bc1 {[%clk 0:00:04]} 47. Rg7 {[%clk 0:00:02]}  Kd6 {[%clk 0:00:02]} 48. g5 {[%clk 0:00:03]}  Ke5 {[%clk 0:00:02]} 49. f6 {[%clk 0:00:03]}  Ke6 {[%clk 0:00:02]} 50. f7 {[%clk 0:00:04]}  Ke7 {[%clk 0:00:03]} 51. g6 {[%clk 0:00:04]}  Bh6 {[%clk 0:00:01]} 52. Rg8 {[%clk 0:00:05]}  Nf6 {[%clk 0:00:01]} 53. g7 {[%clk 0:00:04]}  Kxf7 {[%clk 0:00:01]} 54. Rh8 {[%clk 0:00:03]}  Bxg7 {[%clk 0:00:01]} 55. Rh4 {[%clk 0:00:04]}  Bf8 {[%clk 0:00:02]} 56. Rc4 {[%clk 0:00:04]}  Ke6 {[%clk 0:00:02]} 57. f3 {[%clk 0:00:05]}  Bd6 {[%clk 0:00:03]} 58. Rc6 {[%clk 0:00:05]}  Nd5 {[%clk 0:00:03]} 59. Rc4 {[%clk 0:00:05]}  Nf6 {[%clk 0:00:03]} 60. Rxb4 {[%clk 0:00:05]}  Bxb4 {[%clk 0:00:03]} 61. Kxb4 {[%clk 0:00:06]}  Kf5 {[%clk 0:00:04]} 62. Kc4 {[%clk 0:00:07]}  Kf4 {[%clk 0:00:05]} 63. Kd4 {[%clk 0:00:07]}  Kxf3 {[%clk 0:00:06]} 1/2-1/2


[Site "https://www.chess.com"]